[Event "January 9 Early 2024"]
[Site "https://www.chess.com"]
[Date "2024.01.11"]
[Round "5"]
[White "Grischuk, Alexander"]
[Black "Shkapenko, Pavel"]
[Result "1-0"]
[Board "43"]
[TimeControl "180+1"]
[WhiteFideId "4126025"]
[BlackFideId "4151933"]
[WhiteElo "3062"]
[BlackElo "2758"]
[WhiteTeam "RUS"]
[BlackTeam "FID"]
[WhiteClock "0:00:50"]
[BlackClock "0:00:58"]

1. d4 {[%clk 0:03:00]}  d5 {[%clk 0:02:58]} 2. Nf3 {[%clk 0:03:00]}  c5 {[%clk 0:02:58]} 3. c4 {[%clk 0:03:00]}  e6 {[%clk 0:02:57]} 4. cxd5 {[%clk 0:02:57]}  exd5 {[%clk 0:02:58]} 5. Bg5 {[%clk 0:02:56]}  Nf6 {[%clk 0:02:31]} 6. Nc3 {[%clk 0:02:55]}  Be6 {[%clk 0:02:21]} 7. e3 {[%clk 0:02:51]}  Nc6 {[%clk 0:02:15]} 8. Bb5 {[%clk 0:02:47]}  Be7 {[%clk 0:02:08]} 9. dxc5 {[%clk 0:02:42]}  O-O {[%clk 0:02:05]} 10. O-O {[%clk 0:02:23]}  Bxc5 {[%clk 0:02:04]} 11. Rc1 {[%clk 0:02:21]}  Be7 {[%clk 0:02:03]} 12. Nd4 {[%clk 0:02:14]}  Ne5 {[%clk 0:01:55]} 13. Qb3 {[%clk 0:02:00]}  Rc8 {[%clk 0:01:30]} 14. Rfd1 {[%clk 0:01:58]}  Ng6 {[%clk 0:01:26]} 15. Be2 {[%clk 0:01:55]}  Qd7 {[%clk 0:01:15]} 16. Qb5 {[%clk 0:01:26]}  Rfd8 {[%clk 0:01:09]} 17. Qxd7 {[%clk 0:01:24]}  Rxd7 {[%clk 0:01:09]} 18. Nxe6 {[%clk 0:01:08]}  fxe6 {[%clk 0:01:08]} 19. Nxd5 {[%clk 0:00:59]}  Rxc1 {[%clk 0:01:06]} 20. Nxe7+ {[%clk 0:00:59]}  Nxe7 {[%clk 0:01:02]} 21. Rxc1 {[%clk 0:01:00]}  Nc6 {[%clk 0:00:58]} 22. Bxf6 {[%clk 0:00:54]}  gxf6 {[%clk 0:00:58]} 23. Rd1 {[%clk 0:00:55]}  Rxd1+ {[%clk 0:00:57]} 24. Bxd1 {[%clk 0:00:55]}  Kf8 {[%clk 0:00:57]} 25. Be2 {[%clk 0:00:50]}  Ke7 {[%clk 0:00:58]} 26. f4 {[%clk 0:00:50]}  h6 {[%clk 0:00:58]} 27. Kf2 {[%clk 0:00:50]}  Nb4 {[%clk 0:00:58]} 28. a3 {[%clk 0:00:50]}  Na6 {[%clk 0:00:58]} 29. Bxa6 {[%clk 0:00:50]} 1-0

[Event "January 9 Early 2024"]
[Site "https://www.chess.com"]
[Date "2024.01.11"]
[Round "5"]
[White "Firouzja, Alireza"]
[Black "Kovalev, Vladislav"]
[Result "1-0"]
[Board "46"]
[TimeControl "180+1"]
[WhiteFideId "12573981"]
[BlackFideId "13504398"]
[WhiteElo "3135"]
[BlackElo "2909"]
[WhiteTeam "FRA"]
[BlackTeam "FID"]
[WhiteClock "0:01:42"]
[BlackClock "0:00:01"]

1. e4 {[%clk 0:02:53]}  e5 {[%clk 0:03:00]} 2. Nf3 {[%clk 0:02:53]}  Nc6 {[%clk 0:03:00]} 3. Bb5 {[%clk 0:02:53]}  a6 {[%clk 0:03:01]} 4. Ba4 {[%clk 0:02:54]}  Nf6 {[%clk 0:03:01]} 5. O-O {[%clk 0:02:54]}  Be7 {[%clk 0:03:02]} 6. d3 {[%clk 0:02:55]}  b5 {[%clk 0:03:01]} 7. Bb3 {[%clk 0:02:55]}  d6 {[%clk 0:03:02]} 8. c3 {[%clk 0:02:56]}  O-O {[%clk 0:03:02]} 9. h3 {[%clk 0:02:57]}  Nb8 {[%clk 0:02:57]} 10. a4 {[%clk 0:02:55]}  Bb7 {[%clk 0:02:56]} 11. Na3 {[%clk 0:02:47]}  Nbd7 {[%clk 0:02:55]} 12. Bg5 {[%clk 0:02:46]}  c6 {[%clk 0:02:43]} 13. Ba2 {[%clk 0:02:31]}  h6 {[%clk 0:02:40]} 14. Be3 {[%clk 0:02:26]}  Qc7 {[%clk 0:02:24]} 15. Nh4 {[%clk 0:02:23]}  d5 {[%clk 0:01:55]} 16. Nf5 {[%clk 0:02:23]}  Bxa3 {[%clk 0:01:54]} 17. bxa3 {[%clk 0:02:24]}  Rfe8 {[%clk 0:01:42]} 18. f4 {[%clk 0:02:11]}  c5 {[%clk 0:01:16]} 19. Qf3 {[%clk 0:01:59]}  Re6 {[%clk 0:00:53]} 20. exd5 {[%clk 0:01:56]}  c4 {[%clk 0:00:21]} 21. Qg3 {[%clk 0:01:44]}  Nh5 {[%clk 0:00:21]} 22. Qh4 {[%clk 0:01:45]}  Bxd5 {[%clk 0:00:12]} 23. Qxh5 {[%clk 0:01:45]}  Nf6 {[%clk 0:00:09]} 24. Qh4 {[%clk 0:01:45]}  cxd3 {[%clk 0:00:08]} 25. fxe5 {[%clk 0:01:45]}  Qxe5 {[%clk 0:00:06]} 26. Bd4 {[%clk 0:01:45]}  Qe2 {[%clk 0:00:01]} 27. Bxd5 {[%clk 0:01:44]}  Nxd5 {[%clk 0:00:01]} 28. Rae1 {[%clk 0:01:42]} 1-0

[Event "January 9 Early 2024"]
[Site "https://www.chess.com"]
[Date "2024.01.11"]
[Round "5"]
[White "Alexanian, Nelli"]
[Black "Abrosimov, Vladimir"]
[Result "0-1"]
[Board "47"]
[TimeControl "180+1"]
[WhiteFideId "4170539"]
[BlackFideId "4166892"]
[WhiteElo "1938"]
[BlackElo "2188"]
[WhiteTeam "TUR"]
[BlackTeam "RUS"]
[WhiteClock "0:00:01"]
[BlackClock "0:01:48"]

1. d4 {[%clk 0:01:00]}  b5 {[%clk 0:02:57]} 2. e4 {[%clk 0:00:58]}  Bb7 {[%clk 0:02:57]} 3. d5 {[%clk 0:00:55]}  a6 {[%clk 0:02:56]} 4. Nc3 {[%clk 0:00:53]}  e6 {[%clk 0:02:53]} 5. Bf4 {[%clk 0:00:47]}  d6 {[%clk 0:02:46]} 6. dxe6 {[%clk 0:00:42]}  fxe6 {[%clk 0:02:47]} 7. Nf3 {[%clk 0:00:39]}  Nf6 {[%clk 0:02:47]} 8. Bd3 {[%clk 0:00:38]}  b4 {[%clk 0:02:46]} 9. Ne2 {[%clk 0:00:34]}  Nxe4 {[%clk 0:02:45]} 10. O-O {[%clk 0:00:29]}  Be7 {[%clk 0:02:42]} 11. c3 {[%clk 0:00:26]}  bxc3 {[%clk 0:02:40]} 12. bxc3 {[%clk 0:00:20]}  Nd7 {[%clk 0:02:37]} 13. Qb3 {[%clk 0:00:20]}  Bd5 {[%clk 0:02:31]} 14. c4 {[%clk 0:00:15]}  Bc6 {[%clk 0:02:23]} 15. Qc2 {[%clk 0:00:14]}  Ndc5 {[%clk 0:02:20]} 16. Ned4 {[%clk 0:00:13]}  Bb7 {[%clk 0:02:11]} 17. Nxe6 {[%clk 0:00:12]}  Nxe6 {[%clk 0:02:10]} 18. Bxe4 {[%clk 0:00:12]}  Bxe4 {[%clk 0:02:02]} 19. Qxe4 {[%clk 0:00:11]}  Nc5 {[%clk 0:02:03]} 20. Qe3 {[%clk 0:00:11]}  O-O {[%clk 0:02:01]} 21. Nd4 {[%clk 0:00:09]}  Bf6 {[%clk 0:01:59]} 22. Rae1 {[%clk 0:00:08]}  Qd7 {[%clk 0:01:56]} 23. Ne6 {[%clk 0:00:02]}  Nxe6 {[%clk 0:01:47]} 24. Qxe6+ {[%clk 0:00:02]}  Qxe6 {[%clk 0:01:48]} 25. Rxe6 {[%clk 0:00:01]}  Rab8 {[%clk 0:01:48]} 0-1

[Event "January 9 Early 2024"]
[Site "https://www.chess.com"]
[Date "2024.01.11"]
[Round "5"]
[White "Santiago, Yago De Moura"]
[Black "Demin, Vladimir"]
[Result "1-0"]
[Board "48"]
[TimeControl "180+1"]
[WhiteFideId "2103877"]
[BlackFideId "4167457"]
[WhiteElo "2802"]
[BlackElo "2595"]
[WhiteTeam "BRA"]
[BlackTeam "RUS"]
[WhiteClock "0:01:32"]
[BlackClock "0:00:22"]

1. d4 {[%clk 0:02:59]}  Nf6 {[%clk 0:02:55]} 2. c4 {[%clk 0:02:59]}  e6 {[%clk 0:02:55]} 3. Nc3 {[%clk 0:02:59]}  Bb4 {[%clk 0:02:54]} 4. e3 {[%clk 0:02:59]}  O-O {[%clk 0:02:52]} 5. Bd3 {[%clk 0:03:00]}  Re8 {[%clk 0:02:48]} 6. Ne2 {[%clk 0:03:00]}  d6 {[%clk 0:02:48]} 7. O-O {[%clk 0:02:59]}  e5 {[%clk 0:02:48]} 8. Qc2 {[%clk 0:02:57]}  Qe7 {[%clk 0:02:46]} 9. f3 {[%clk 0:02:52]}  c5 {[%clk 0:02:41]} 10. d5 {[%clk 0:02:52]}  Ba5 {[%clk 0:02:37]} 11. Kh1 {[%clk 0:02:48]}  a6 {[%clk 0:02:24]} 12. a4 {[%clk 0:02:45]}  h6 {[%clk 0:02:19]} 13. e4 {[%clk 0:02:44]}  Nbd7 {[%clk 0:02:15]} 14. Be3 {[%clk 0:02:42]}  Nf8 {[%clk 0:02:14]} 15. Rae1 {[%clk 0:02:40]}  Bd7 {[%clk 0:02:11]} 16. Bd2 {[%clk 0:02:26]}  N8h7 {[%clk 0:01:56]} 17. b3 {[%clk 0:02:25]}  Nh5 {[%clk 0:01:51]} 18. f4 {[%clk 0:02:20]}  exf4 {[%clk 0:01:46]} 19. Nxf4 {[%clk 0:02:13]}  Nxf4 {[%clk 0:01:44]} 20. Bxf4 {[%clk 0:02:14]}  Nf8 {[%clk 0:01:27]} 21. e5 {[%clk 0:02:13]}  Bc7 {[%clk 0:01:23]} 22. exd6 {[%clk 0:01:47]}  Qxe1 {[%clk 0:01:22]} 23. dxc7 {[%clk 0:01:47]}  Qh4 {[%clk 0:01:17]} 24. Ne4 {[%clk 0:01:43]}  Bf5 {[%clk 0:01:02]} 25. Bg3 {[%clk 0:01:39]}  Qg4 {[%clk 0:00:28]} 26. Nxc5 {[%clk 0:01:38]}  Bxd3 {[%clk 0:00:27]} 27. Qxd3 {[%clk 0:01:39]}  b6 {[%clk 0:00:22]} 28. Nb7 {[%clk 0:01:32]} 1-0

[Event "January 9 Early 2024"]
[Site "https://www.chess.com"]
[Date "2024.01.11"]
[Round "5"]
[White "Dubnevych, Maksym"]
[Black "Wafa, Hamed"]
[Result "0-1"]
[Board "50"]
[TimeControl "180+1"]
[WhiteFideId "14184001"]
[BlackFideId "10628452"]
[WhiteElo "2517"]
[BlackElo "2817"]
[WhiteTeam "UKR"]
[BlackTeam "EGY"]
[WhiteClock "0:00:19"]
[BlackClock "0:01:30"]

1. e4 {[%clk 0:03:00]}  c5 {[%clk 0:02:59]} 2. Nf3 {[%clk 0:03:01]}  a6 {[%clk 0:02:59]} 3. c4 {[%clk 0:02:59]}  Nc6 {[%clk 0:02:58]} 4. d4 {[%clk 0:02:58]}  cxd4 {[%clk 0:02:59]} 5. Nxd4 {[%clk 0:02:59]}  Nf6 {[%clk 0:03:00]} 6. Nc3 {[%clk 0:02:57]}  e5 {[%clk 0:03:00]} 7. Nc2 {[%clk 0:02:56]}  Bc5 {[%clk 0:03:00]} 8. Be2 {[%clk 0:02:51]}  d6 {[%clk 0:03:00]} 9. O-O {[%clk 0:02:51]}  O-O {[%clk 0:02:58]} 10. a3 {[%clk 0:02:51]}  Be6 {[%clk 0:02:58]} 11. b4 {[%clk 0:02:50]}  Ba7 {[%clk 0:02:58]} 12. Be3 {[%clk 0:02:49]}  Bxe3 {[%clk 0:02:58]} 13. fxe3 {[%clk 0:02:45]}  Rc8 {[%clk 0:02:52]} 14. Bd3 {[%clk 0:02:36]}  Ne7 {[%clk 0:02:38]} 15. Nd5 {[%clk 0:02:36]}  Nexd5 {[%clk 0:02:22]} 16. exd5 {[%clk 0:02:28]}  Bg4 {[%clk 0:02:22]} 17. Qe1 {[%clk 0:02:22]}  Bh5 {[%clk 0:02:20]} 18. Rc1 {[%clk 0:02:14]}  Bg6 {[%clk 0:02:19]} 19. Bxg6 {[%clk 0:02:13]}  hxg6 {[%clk 0:02:20]} 20. Qe2 {[%clk 0:02:09]}  Qc7 {[%clk 0:02:15]} 21. Na1 {[%clk 0:02:07]}  a5 {[%clk 0:02:10]} 22. e4 {[%clk 0:02:06]}  axb4 {[%clk 0:02:10]} 23. axb4 {[%clk 0:02:05]}  Qb6+ {[%clk 0:02:10]} 24. Kh1 {[%clk 0:01:51]}  Qxb4 {[%clk 0:02:10]} 25. Rf3 {[%clk 0:01:29]}  b5 {[%clk 0:01:51]} 26. c5 {[%clk 0:01:09]}  Rxc5 {[%clk 0:01:49]} 27. Rcf1 {[%clk 0:01:04]}  Qxe4 {[%clk 0:01:45]} 28. Qf2 {[%clk 0:01:00]}  Rxd5 {[%clk 0:01:41]} 29. Nc2 {[%clk 0:00:58]}  Rd3 {[%clk 0:01:39]} 30. Ne3 {[%clk 0:00:56]}  d5 {[%clk 0:01:36]} 31. h3 {[%clk 0:00:24]}  d4 {[%clk 0:01:35]} 32. Rxf6 {[%clk 0:00:19]}  dxe3 {[%clk 0:01:30]} 0-1

[Event "January 9 Early 2024"]
[Site "https://www.chess.com"]
[Date "2024.01.11"]
[Round "5"]
[White "Estrada Nieto, Julian"]
[Black "Bharadia Yash"]
[Result "1-0"]
[Board "51"]
[TimeControl "180+1"]
[WhiteFideId "5101018"]
[BlackFideId "45087822"]
[WhiteElo "2599"]
[BlackElo "2403"]
[WhiteTeam "ESP"]
[BlackTeam "IND"]
[WhiteClock "0:01:46"]
[BlackClock "0:00:23"]

1. e4 {[%clk 0:03:00]}  g6 {[%clk 0:02:58]} 2. d4 {[%clk 0:03:00]}  Bg7 {[%clk 0:02:58]} 3. Nf3 {[%clk 0:03:01]}  a6 {[%clk 0:02:58]} 4. a4 {[%clk 0:03:00]}  d6 {[%clk 0:02:57]} 5. Nc3 {[%clk 0:03:00]}  Bg4 {[%clk 0:02:50]} 6. Be2 {[%clk 0:03:01]}  Nd7 {[%clk 0:02:50]} 7. Be3 {[%clk 0:02:58]}  c5 {[%clk 0:02:49]} 8. d5 {[%clk 0:02:56]}  Bxc3+ {[%clk 0:02:46]} 9. bxc3 {[%clk 0:02:56]}  Bxf3 {[%clk 0:02:47]} 10. Bxf3 {[%clk 0:02:53]}  Qa5 {[%clk 0:02:44]} 11. Qd2 {[%clk 0:02:51]}  Ne5 {[%clk 0:02:43]} 12. Be2 {[%clk 0:02:51]}  Nf6 {[%clk 0:02:41]} 13. f3 {[%clk 0:02:47]}  O-O {[%clk 0:02:35]} 14. O-O {[%clk 0:02:47]}  Rfd8 {[%clk 0:02:27]} 15. Rfb1 {[%clk 0:02:46]}  Rab8 {[%clk 0:02:25]} 16. c4 {[%clk 0:02:45]}  Qc7 {[%clk 0:02:11]} 17. a5 {[%clk 0:02:45]}  b6 {[%clk 0:02:09]} 18. axb6 {[%clk 0:02:39]}  Rxb6 {[%clk 0:02:10]} 19. Rxb6 {[%clk 0:02:37]}  Qxb6 {[%clk 0:02:11]} 20. Qa5 {[%clk 0:02:37]}  Qxa5 {[%clk 0:02:03]} 21. Rxa5 {[%clk 0:02:37]}  Rb8 {[%clk 0:01:51]} 22. Rxa6 {[%clk 0:02:30]}  Rb1+ {[%clk 0:01:43]} 23. Kf2 {[%clk 0:02:30]}  h5 {[%clk 0:01:40]} 24. Ra2 {[%clk 0:02:19]}  Nfd7 {[%clk 0:00:58]} 25. f4 {[%clk 0:02:13]}  Ng4+ {[%clk 0:00:58]} 26. Bxg4 {[%clk 0:02:13]}  hxg4 {[%clk 0:00:58]} 27. Bd2 {[%clk 0:01:54]}  Nb6 {[%clk 0:00:23]} 28. Bc3 {[%clk 0:01:48]}  Nxc4 {[%clk 0:00:23]} 29. Ra8+ {[%clk 0:01:46]} 1-0

[Event "January 9 Early 2024"]
[Site "https://www.chess.com"]
[Date "2024.01.11"]
[Round "5"]
[White "Mikhailovsky, Vladimir"]
[Black "Baches Garcia, Guillermo"]
[Result "1-0"]
[Board "53"]
[TimeControl "180+1"]
[WhiteFideId "34105414"]
[BlackFideId "2209764"]
[WhiteElo "2836"]
[BlackElo "2518"]
[WhiteTeam "RUS"]
[BlackTeam "ESP"]
[WhiteClock "0:00:59"]
[BlackClock "0:01:21"]

1. e4 {[%clk 0:03:00]}  d5 {[%clk 0:02:59]} 2. exd5 {[%clk 0:03:01]}  Qxd5 {[%clk 0:03:00]} 3. Nc3 {[%clk 0:03:01]}  Qa5 {[%clk 0:03:00]} 4. b4 {[%clk 0:03:02]}  Qxb4 {[%clk 0:03:00]} 5. a4 {[%clk 0:03:02]}  Qd6 {[%clk 0:02:57]} 6. Ba3 {[%clk 0:03:03]}  Qd8 {[%clk 0:02:56]} 7. Bc4 {[%clk 0:03:02]}  Nf6 {[%clk 0:02:55]} 8. Nf3 {[%clk 0:03:01]}  e6 {[%clk 0:02:47]} 9. Bxf8 {[%clk 0:03:00]}  Kxf8 {[%clk 0:02:47]} 10. O-O {[%clk 0:03:01]}  g6 {[%clk 0:02:45]} 11. d4 {[%clk 0:03:00]}  Kg7 {[%clk 0:02:44]} 12. Re1 {[%clk 0:03:00]}  Nc6 {[%clk 0:02:37]} 13. a5 {[%clk 0:02:56]}  b6 {[%clk 0:02:28]} 14. a6 {[%clk 0:02:47]}  Na5 {[%clk 0:02:18]} 15. Bf1 {[%clk 0:02:34]}  c6 {[%clk 0:02:14]} 16. Ne5 {[%clk 0:02:33]}  Qc7 {[%clk 0:02:13]} 17. Qf3 {[%clk 0:02:31]}  Rd8 {[%clk 0:02:09]} 18. Rad1 {[%clk 0:02:15]}  Rb8 {[%clk 0:01:55]} 19. h4 {[%clk 0:02:11]}  b5 {[%clk 0:01:50]} 20. Ra1 {[%clk 0:01:13]}  Bd7 {[%clk 0:01:43]} 21. Ne4 {[%clk 0:01:09]}  Nxe4 {[%clk 0:01:21]} 22. Qxf7+ {[%clk 0:01:09]}  Kh8 {[%clk 0:01:22]} 23. Rxe4 {[%clk 0:01:02]}  Rf8 {[%clk 0:01:21]} 24. Qxd7 {[%clk 0:00:59]} 1-0

[Event "January 9 Early 2024"]
[Site "https://www.chess.com"]
[Date "2024.01.11"]
[Round "5"]
[White "Berezin, Viktor"]
[Black "Nigalidze, Gaioz"]
[Result "1-0"]
[Board "58"]
[TimeControl "180+1"]
[WhiteFideId "14107872"]
[BlackFideId "13603078"]
[WhiteElo "2508"]
[BlackElo "2657"]
[WhiteTeam "UKR"]
[BlackTeam "GEO"]
[WhiteClock "0:01:12"]
[BlackClock "0:00:09"]

1. d4 {[%clk 0:02:57]}  Nf6 {[%clk 0:02:59]} 2. Nf3 {[%clk 0:02:55]}  d5 {[%clk 0:02:58]} 3. c4 {[%clk 0:02:54]}  e6 {[%clk 0:02:57]} 4. g3 {[%clk 0:02:51]}  Bb4+ {[%clk 0:02:51]} 5. Bd2 {[%clk 0:02:49]}  Be7 {[%clk 0:02:51]} 6. Bg2 {[%clk 0:02:49]}  O-O {[%clk 0:02:51]} 7. Qc2 {[%clk 0:02:49]}  b6 {[%clk 0:02:51]} 8. O-O {[%clk 0:02:50]}  Bb7 {[%clk 0:02:47]} 9. Bf4 {[%clk 0:02:49]}  dxc4 {[%clk 0:02:41]} 10. Qxc4 {[%clk 0:02:49]}  Nd5 {[%clk 0:02:41]} 11. Nc3 {[%clk 0:02:48]}  Nxf4 {[%clk 0:02:40]} 12. gxf4 {[%clk 0:02:49]}  Bd6 {[%clk 0:02:36]} 13. e3 {[%clk 0:02:49]}  Nd7 {[%clk 0:02:34]} 14. Ne5 {[%clk 0:02:49]}  Bxg2 {[%clk 0:02:32]} 15. Kxg2 {[%clk 0:02:50]}  Bxe5 {[%clk 0:02:04]} 16. dxe5 {[%clk 0:02:51]}  Rc8 {[%clk 0:01:32]} 17. Rad1 {[%clk 0:02:44]}  Qe7 {[%clk 0:01:32]} 18. Qc6 {[%clk 0:02:33]}  Rfd8 {[%clk 0:01:09]} 19. Nb5 {[%clk 0:02:28]}  Nb8 {[%clk 0:00:45]} 20. Qb7 {[%clk 0:02:06]}  a6 {[%clk 0:00:28]} 21. Na7 {[%clk 0:01:39]}  Rxd1 {[%clk 0:00:28]} 22. Rxd1 {[%clk 0:01:22]}  Rd8 {[%clk 0:00:22]} 23. Nc8 {[%clk 0:01:19]}  Qe8 {[%clk 0:00:09]} 24. Rxd8 {[%clk 0:01:16]}  Qxd8 {[%clk 0:00:10]} 25. Qxb8 {[%clk 0:01:14]}  h5 {[%clk 0:00:09]} 26. Ne7+ {[%clk 0:01:12]} 1-0

[Event "January 9 Early 2024"]
[Site "https://www.chess.com"]
[Date "2024.01.11"]
[Round "5"]
[White "Kiselev, Pavel"]
[Black "Smirnov, Timofey"]
[Result "1-0"]
[Board "60"]
[TimeControl "180+1"]
[WhiteFideId "4191102"]
[BlackFideId "24176427"]
[WhiteElo "2368"]
[BlackElo "2004"]
[WhiteTeam "RUS"]
[BlackTeam "RUS"]
[WhiteClock "0:01:48"]
[BlackClock "0:00:03"]

1. Nf3 {[%clk 0:03:00]}  d5 {[%clk 0:02:58]} 2. d4 {[%clk 0:03:01]}  Nf6 {[%clk 0:02:56]} 3. c4 {[%clk 0:03:01]}  c6 {[%clk 0:02:56]} 4. cxd5 {[%clk 0:03:00]}  cxd5 {[%clk 0:02:56]} 5. Nc3 {[%clk 0:03:01]}  Nc6 {[%clk 0:02:55]} 6. Bf4 {[%clk 0:03:00]}  Nh5 {[%clk 0:02:49]} 7. Bg5 {[%clk 0:02:55]}  h6 {[%clk 0:02:47]} 8. Bh4 {[%clk 0:02:54]}  a6 {[%clk 0:02:27]} 9. e3 {[%clk 0:02:52]}  Nf6 {[%clk 0:02:21]} 10. Bd3 {[%clk 0:02:41]}  e6 {[%clk 0:02:21]} 11. O-O {[%clk 0:02:39]}  Be7 {[%clk 0:02:21]} 12. h3 {[%clk 0:02:38]}  O-O {[%clk 0:02:20]} 13. a3 {[%clk 0:02:33]}  b5 {[%clk 0:02:17]} 14. b4 {[%clk 0:02:31]}  Nb8 {[%clk 0:02:09]} 15. Ne5 {[%clk 0:02:28]}  Nbd7 {[%clk 0:02:06]} 16. Nc6 {[%clk 0:02:27]}  Qe8 {[%clk 0:02:01]} 17. Nxe7+ {[%clk 0:02:26]}  Qxe7 {[%clk 0:02:01]} 18. e4 {[%clk 0:02:25]}  dxe4 {[%clk 0:01:57]} 19. Nxe4 {[%clk 0:02:24]}  Bb7 {[%clk 0:01:41]} 20. Nc5 {[%clk 0:02:23]}  Nxc5 {[%clk 0:01:16]} 21. dxc5 {[%clk 0:02:24]}  Rfd8 {[%clk 0:01:14]} 22. Qe2 {[%clk 0:02:22]}  Qd7 {[%clk 0:01:05]} 23. Bxf6 {[%clk 0:02:00]}  Qxd3 {[%clk 0:01:03]} 24. Qg4 {[%clk 0:01:58]}  Qg6 {[%clk 0:00:32]} 25. Qxg6 {[%clk 0:01:57]}  fxg6 {[%clk 0:00:31]} 26. Bxd8 {[%clk 0:01:58]}  Rxd8 {[%clk 0:00:32]} 27. Rad1 {[%clk 0:01:58]}  Rd5 {[%clk 0:00:28]} 28. Rxd5 {[%clk 0:01:58]}  exd5 {[%clk 0:00:28]} 29. Re1 {[%clk 0:01:56]}  Kf7 {[%clk 0:00:27]} 30. f4 {[%clk 0:01:53]}  Kf6 {[%clk 0:00:22]} 31. Kf2 {[%clk 0:01:53]}  Kf5 {[%clk 0:00:19]} 32. Re7 {[%clk 0:01:51]}  Bc6 {[%clk 0:00:17]} 33. Rc7 {[%clk 0:01:51]}  Be8 {[%clk 0:00:06]} 34. c6 {[%clk 0:01:49]}  Ke4 {[%clk 0:00:05]} 35. Rc8 {[%clk 0:01:48]}  Kd3 {[%clk 0:00:03]} 36. Rxe8 {[%clk 0:01:48]} 1-0

[Event "January 9 Early 2024"]
[Site "https://www.chess.com"]
[Date "2024.01.11"]
[Round "5"]
[White "Shohat, Yotam"]
[Black "Yagupov, Igor"]
[Result "1-0"]
[Board "61"]
[TimeControl "180+1"]
[WhiteFideId "2813955"]
[BlackFideId "4113632"]
[WhiteElo "2440"]
[BlackElo "2637"]
[WhiteTeam "ISR"]
[BlackTeam "RUS"]
[WhiteClock "0:00:37"]
[BlackClock "0:00:43"]

1. e4 {[%clk 0:03:00]}  c5 {[%clk 0:02:56]} 2. Nf3 {[%clk 0:02:46]}  Nc6 {[%clk 0:02:55]} 3. Bb5 {[%clk 0:02:45]}  Nf6 {[%clk 0:02:54]} 4. Bxc6 {[%clk 0:02:44]}  dxc6 {[%clk 0:02:53]} 5. d3 {[%clk 0:02:43]}  Qc7 {[%clk 0:02:53]} 6. Nc3 {[%clk 0:02:43]}  e5 {[%clk 0:02:52]} 7. O-O {[%clk 0:02:42]}  Bd6 {[%clk 0:02:49]} 8. Nd2 {[%clk 0:02:38]}  b5 {[%clk 0:02:47]} 9. a4 {[%clk 0:02:36]}  Rb8 {[%clk 0:02:36]} 10. b3 {[%clk 0:02:35]}  a6 {[%clk 0:02:35]} 11. Bb2 {[%clk 0:02:33]}  Nd7 {[%clk 0:02:28]} 12. Ne2 {[%clk 0:02:29]}  O-O {[%clk 0:02:26]} 13. Ng3 {[%clk 0:02:29]}  Re8 {[%clk 0:02:20]} 14. Nf5 {[%clk 0:02:27]}  Bf8 {[%clk 0:02:13]} 15. f4 {[%clk 0:02:27]}  g6 {[%clk 0:02:10]} 16. Qg4 {[%clk 0:01:55]}  f6 {[%clk 0:01:51]} 17. Nh4 {[%clk 0:01:32]}  Bg7 {[%clk 0:01:39]} 18. f5 {[%clk 0:01:25]}  Nf8 {[%clk 0:01:25]} 19. Qg3 {[%clk 0:01:19]}  Bh6 {[%clk 0:01:19]} 20. fxg6 {[%clk 0:01:07]}  Bxd2 {[%clk 0:01:19]} 21. gxh7+ {[%clk 0:01:01]}  Kxh7 {[%clk 0:01:18]} 22. Rxf6 {[%clk 0:01:00]}  Bf4 {[%clk 0:00:53]} 23. Qf3 {[%clk 0:00:49]}  Ne6 {[%clk 0:00:45]} 24. Qh5+ {[%clk 0:00:44]}  Kg7 {[%clk 0:00:45]} 25. Qg6+ {[%clk 0:00:39]}  Kh8 {[%clk 0:00:45]} 26. Qxe8+ {[%clk 0:00:39]}  Kh7 {[%clk 0:00:43]} 27. Rf7+ {[%clk 0:00:37]} 1-0

[Event "January 9 Early 2024"]
[Site "https://www.chess.com"]
[Date "2024.01.11"]
[Round "5"]
[White "Ladan, Nicholas"]
[Black "Boyer, Mahel"]
[Result "0-1"]
[Board "62"]
[TimeControl "180+1"]
[WhiteFideId "30918855"]
[BlackFideId "45102422"]
[WhiteElo "2480"]
[BlackElo "2649"]
[WhiteTeam "USA"]
[BlackTeam "FRA"]
[WhiteClock "0:00:18"]
[BlackClock "0:01:01"]

1. d4 {[%clk 0:03:00]}  d6 {[%clk 0:02:36]} 2. Nf3 {[%clk 0:03:00]}  g6 {[%clk 0:02:35]} 3. e4 {[%clk 0:02:58]}  Bg7 {[%clk 0:02:33]} 4. Nc3 {[%clk 0:02:58]}  e5 {[%clk 0:02:31]} 5. Rg1 {[%clk 0:02:52]}  exd4 {[%clk 0:02:30]} 6. Nxd4 {[%clk 0:02:52]}  Nf6 {[%clk 0:02:31]} 7. f3 {[%clk 0:02:49]}  O-O {[%clk 0:02:18]} 8. g4 {[%clk 0:02:49]}  Re8 {[%clk 0:02:17]} 9. Be2 {[%clk 0:02:39]}  d5 {[%clk 0:02:17]} 10. g5 {[%clk 0:02:21]}  dxe4 {[%clk 0:02:18]} 11. gxf6 {[%clk 0:02:18]}  Qxf6 {[%clk 0:02:19]} 12. Nxe4 {[%clk 0:01:59]}  Qxd4 {[%clk 0:02:18]} 13. Qxd4 {[%clk 0:01:52]}  Bxd4 {[%clk 0:02:19]} 14. Bh6 {[%clk 0:01:45]}  Bxb2 {[%clk 0:01:56]} 15. Rd1 {[%clk 0:01:38]}  Bf5 {[%clk 0:01:47]} 16. Kf2 {[%clk 0:01:24]}  Nc6 {[%clk 0:01:45]} 17. Bc4 {[%clk 0:01:09]}  Bxe4 {[%clk 0:01:39]} 18. fxe4 {[%clk 0:01:07]}  Bd4+ {[%clk 0:01:40]} 19. Be3 {[%clk 0:01:01]}  Rxe4 {[%clk 0:01:39]} 20. Bxd4 {[%clk 0:00:58]}  Nxd4 {[%clk 0:01:38]} 21. c3 {[%clk 0:00:52]}  Nf5 {[%clk 0:01:27]} 22. Bd5 {[%clk 0:00:47]}  Rf4+ {[%clk 0:01:27]} 23. Kg2 {[%clk 0:00:46]}  Re8 {[%clk 0:01:27]} 24. Bxb7 {[%clk 0:00:43]}  Ne3+ {[%clk 0:01:22]} 25. Kg3 {[%clk 0:00:42]}  Rf6 {[%clk 0:01:01]} 26. Rd7 {[%clk 0:00:37]}  c6 {[%clk 0:01:01]} 27. Ba6 {[%clk 0:00:28]}  Re4 {[%clk 0:01:01]} 28. Rb1 {[%clk 0:00:20]}  Rg4+ {[%clk 0:01:00]} 29. Kh3 {[%clk 0:00:18]}  Rf3# {[%clk 0:01:01]} 0-1